[Event "*** Titled Tuesday Blitz"]
[Site "Chess.com"]
[Date "2020.04.28"]
[Round "3"]
[White "GMaka"]
[Black "Kaponov"]
[Result "1-0"]
[WhiteElo "2323"]
[BlackElo "2098"]
[TimeControl "180+1"]
[EndTime "10:29:31 PDT"]
[Termination "GMaka won on time"]

1. d4 {[%clk 0:03:00.9]} 1... Nf6 {[%clk 0:02:59.1]} 2. Bf4 {[%clk 0:03:01.1]}
2... g6 {[%clk 0:02:58.5]} 3. e3 {[%clk 0:03:01.5]} 3... Bg7 {[%clk 0:02:58.6]}
4. c4 {[%clk 0:03:01.8]} 4... d6 {[%clk 0:02:58.7]} 5. h3 {[%clk 0:03:01.4]}
5... O-O {[%clk 0:02:58.7]} 6. Nc3 {[%clk 0:03:01.8]} 6... Nfd7 {[%clk
0:02:58.9]} 7. Nf3 {[%clk 0:03:00.4]} 7... e5 {[%clk 0:02:59.1]} 8. Bh2 {[%clk
0:02:54]} 8... Nc6 {[%clk 0:02:59.2]} 9. d5 {[%clk 0:02:53.4]} 9... Ne7 {[%clk
0:02:58.5]} 10. Be2 {[%clk 0:02:52.3]} 10... h6 {[%clk 0:02:55.8]} 11. g4 {[%clk
0:02:44.1]} 11... a5 {[%clk 0:02:48.5]} 12. Qc2 {[%clk 0:02:42.5]} 12... Nc5
{[%clk 0:02:48.2]} 13. O-O-O {[%clk 0:02:40.5]} 13... f5 {[%clk 0:01:55.3]} 14.
Nh4 {[%clk 0:02:31.3]} 14... g5 {[%clk 0:01:47]} 15. Nxf5 {[%clk 0:02:28.7]}
15... Nxf5 {[%clk 0:01:46.3]} 16. gxf5 {[%clk 0:02:29.6]} 16... Bxf5 {[%clk
0:01:46.6]} 17. e4 {[%clk 0:02:22.1]} 17... Bh7 {[%clk 0:01:46.3]} 18. Bh5
{[%clk 0:02:04.3]} 18... Rf4 {[%clk 0:01:39.8]} 19. Bxf4 {[%clk 0:02:02.7]}
19... exf4 {[%clk 0:01:39.5]} 20. f3 {[%clk 0:01:59.6]} 20... a4 {[%clk
0:01:33.9]} 21. a3 {[%clk 0:01:58.5]} 21... Ra6 {[%clk 0:01:23.4]} 22. Rh2
{[%clk 0:01:48]} 22... Qf6 {[%clk 0:01:14.8]} 23. Nb5 {[%clk 0:01:39.6]} 23...
Rb6 {[%clk 0:01:07.6]} 24. Bg4 {[%clk 0:01:21.6]} 24... Bg6 {[%clk 0:00:49.2]}
25. h4 {[%clk 0:01:17.2]} 25... Be8 {[%clk 0:00:48.4]} 26. hxg5 {[%clk
0:01:15.1]} 26... hxg5 {[%clk 0:00:48.1]} 27. Be6+ {[%clk 0:01:09.5]} 27... Nxe6
{[%clk 0:00:43.4]} 28. dxe6 {[%clk 0:01:10.4]} 28... Bxb5 {[%clk 0:00:43.1]} 29.
e5 {[%clk 0:00:44.3]} 29... Qxe6 {[%clk 0:00:20.1]} 30. cxb5 {[%clk 0:00:40.8]}
30... Rxb5 {[%clk 0:00:19.2]} 31. Qxa4 {[%clk 0:00:21.6]} 31... Qxe5 {[%clk
0:00:12]} 32. Qc4+ {[%clk 0:00:16.5]} 32... Kf8 {[%clk 0:00:09.5]} 33. Qe4
{[%clk 0:00:14]} 33... Rc5+ {[%clk 0:00:04]} 34. Kb1 {[%clk 0:00:13.8]} 34...
Qf6 {[%clk 0:00:03.4]} 35. Qxb7 {[%clk 0:00:09.3]} 35... Rc4 {[%clk 0:00:01.5]}
36. Qc8+ {[%clk 0:00:08.7]} 36... Kf7 {[%clk 0:00:01.9]} 37. Qd7+ {[%clk
0:00:09.3]} 37... Kg6 {[%clk 0:00:01.8]} 38. Re1 {[%clk 0:00:07.9]} 1-0

[Event "*** Titled Tuesday Blitz"]
[Site "Chess.com"]
[Date "2020.04.28"]
[Round "3"]
[White "Mischuk_D"]
[Black "Aureliano-Buendia"]
[Result "1-0"]
[WhiteElo "2664"]
[BlackElo "2415"]
[TimeControl "180+1"]
[EndTime "10:29:35 PDT"]
[Termination "Mischuk_D won by resignation"]

1. e4 {[%clk 0:03:00.9]} 1... e5 {[%clk 0:02:58.8]} 2. Nf3 {[%clk 0:03:00.6]}
2... Nc6 {[%clk 0:02:59.2]} 3. Nc3 {[%clk 0:02:58]} 3... Nf6 {[%clk 0:02:54.4]}
4. d4 {[%clk 0:02:58.2]} 4... exd4 {[%clk 0:02:45.8]} 5. Nxd4 {[%clk 0:02:59.1]}
5... Bb4 {[%clk 0:02:45.9]} 6. Nxc6 {[%clk 0:02:59.3]} 6... bxc6 {[%clk
0:02:46.2]} 7. Bd3 {[%clk 0:02:59.7]} 7... d5 {[%clk 0:02:45.4]} 8. Bd2 {[%clk
0:02:58.7]} 8... O-O {[%clk 0:02:43.7]} 9. O-O {[%clk 0:02:58.5]} 9... Rb8
{[%clk 0:02:35.5]} 10. a3 {[%clk 0:02:24.4]} 10... Bc5 {[%clk 0:02:24.8]} 11.
exd5 {[%clk 0:02:17]} 11... cxd5 {[%clk 0:02:23.3]} 12. h3 {[%clk 0:02:12.8]}
12... h6 {[%clk 0:02:19.1]} 13. Qf3 {[%clk 0:02:12.3]} 13... c6 {[%clk
0:02:05.5]} 14. Bxh6 {[%clk 0:01:58.4]} 14... Bd6 {[%clk 0:01:47.8]} 15. Bc1
{[%clk 0:01:52.7]} 15... c5 {[%clk 0:01:43.9]} 16. b3 {[%clk 0:01:46.1]} 16...
Bb7 {[%clk 0:01:39.8]} 17. Bg5 {[%clk 0:01:35.5]} 17... Be5 {[%clk 0:01:36.3]}
18. Qf5 {[%clk 0:01:03.7]} 18... Re8 {[%clk 0:01:23.6]} 19. Rae1 {[%clk
0:00:48.2]} 19... g6 {[%clk 0:01:15.8]} 20. Qxe5 {[%clk 0:00:44.2]} 20... Rxe5
{[%clk 0:01:13.2]} 21. Rxe5 {[%clk 0:00:45.1]} 21... Kg7 {[%clk 0:01:07.2]} 22.
Rfe1 {[%clk 0:00:44]} 22... Qa5 {[%clk 0:01:05.6]} 23. Bd2 {[%clk 0:00:31]}
23... Qc7 {[%clk 0:00:51.8]} 24. Re7 {[%clk 0:00:28.9]} 24... Qc6 {[%clk
0:00:50.6]} 25. Bb5 {[%clk 0:00:26.7]} 25... Qd6 {[%clk 0:00:47.1]} 26. Bf1
{[%clk 0:00:26.4]} 26... a6 {[%clk 0:00:45.4]} 27. R7e2 {[%clk 0:00:20.9]} 27...
d4 {[%clk 0:00:43.2]} 28. Na4 {[%clk 0:00:21.1]} 28... Bc6 {[%clk 0:00:39]} 29.
Nb2 {[%clk 0:00:20.8]} 29... Bb5 {[%clk 0:00:36.9]} 30. Re5 {[%clk 0:00:19.8]}
30... Bxf1 {[%clk 0:00:35.5]} 31. Kxf1 {[%clk 0:00:20.7]} 31... Nd7 {[%clk
0:00:30.5]} 32. Nc4 {[%clk 0:00:20.3]} 32... Qc7 {[%clk 0:00:28.6]} 33. R5e4
{[%clk 0:00:19]} 33... Rh8 {[%clk 0:00:23.8]} 34. Bf4 {[%clk 0:00:18.7]} 34...
Qc6 {[%clk 0:00:23.7]} 35. Re7 {[%clk 0:00:17.7]} 35... Rxh3 {[%clk 0:00:10.3]}
36. gxh3 {[%clk 0:00:11.7]} 36... Qh1+ {[%clk 0:00:10.5]} 37. Ke2 {[%clk
0:00:12.1]} 37... Qe4+ {[%clk 0:00:10.7]} 38. Rxe4 {[%clk 0:00:11.6]} 1-0

[Event "*** Titled Tuesday Blitz"]
[Site "Chess.com"]
[Date "2020.04.28"]
[Round "3"]
[White "willyam13"]
[Black "imdarealist"]
[Result "0-1"]
[WhiteElo "2502"]
[BlackElo "2280"]
[TimeControl "180+1"]
[EndTime "10:29:35 PDT"]
[Termination "imdarealist won by checkmate"]

1. e4 {[%clk 0:03:00.8]} 1... e5 {[%clk 0:02:57.5]} 2. Nf3 {[%clk 0:03:01.1]}
2... Nf6 {[%clk 0:02:58]} 3. Nxe5 {[%clk 0:03:00.8]} 3... d6 {[%clk 0:02:57.8]}
4. Nf3 {[%clk 0:03:01.4]} 4... Nxe4 {[%clk 0:02:58.3]} 5. Nc3 {[%clk 0:03:02]}
5... Nxc3 {[%clk 0:02:56.3]} 6. dxc3 {[%clk 0:03:02.9]} 6... Be6 {[%clk
0:02:55.8]} 7. Be3 {[%clk 0:03:03.5]} 7... Nc6 {[%clk 0:02:55.6]} 8. Qd2 {[%clk
0:03:04.2]} 8... Be7 {[%clk 0:02:51.1]} 9. O-O-O {[%clk 0:03:03.9]} 9... Qd7
{[%clk 0:02:51.2]} 10. Kb1 {[%clk 0:02:53.6]} 10... O-O-O {[%clk 0:02:45.7]} 11.
h4 {[%clk 0:02:48.5]} 11... h6 {[%clk 0:02:23.7]} 12. Bb5 {[%clk 0:02:41.9]}
12... a6 {[%clk 0:02:22.5]} 13. Be2 {[%clk 0:02:17.7]} 13... Kb8 {[%clk
0:02:20.1]} 14. Nd4 {[%clk 0:02:17.2]} 14... Nxd4 {[%clk 0:02:01.6]} 15. Qxd4
{[%clk 0:02:14.7]} 15... c5 {[%clk 0:02:01.1]} 16. Qf4 {[%clk 0:02:14.5]} 16...
Qc7 {[%clk 0:01:52.5]} 17. c4 {[%clk 0:02:11.7]} 17... Bf6 {[%clk 0:01:42.8]}
18. Qf3 {[%clk 0:01:51.9]} 18... Qb6 {[%clk 0:01:34.5]} 19. Bc1 {[%clk
0:01:51.6]} 19... Qb4 {[%clk 0:01:23.8]} 20. a3 {[%clk 0:01:45.8]} 20... Qb6
{[%clk 0:01:24]} 21. g4 {[%clk 0:01:43.4]} 21... Bd4 {[%clk 0:01:10.3]} 22. Rhe1
{[%clk 0:01:30.1]} 22... Ka8 {[%clk 0:00:55.5]} 23. Bf1 {[%clk 0:01:28.2]} 23...
g6 {[%clk 0:00:42.3]} 24. Bg2 {[%clk 0:01:23.4]} 24... h5 {[%clk 0:00:39.7]} 25.
gxh5 {[%clk 0:01:11.7]} 25... Rxh5 {[%clk 0:00:39.4]} 26. Rd3 {[%clk 0:01:10.6]}
26... Bxc4 {[%clk 0:00:36.2]} 27. Re7 {[%clk 0:01:03.7]} 27... Rb8 {[%clk
0:00:30.9]} 28. Rd1 {[%clk 0:00:55.3]} 28... Rf5 {[%clk 0:00:31]} 29. Qg4 {[%clk
0:00:46.3]} 29... Be6 {[%clk 0:00:27.6]} 30. c3 {[%clk 0:00:39]} 30... Bxc3
{[%clk 0:00:14.5]} 31. Qa4 {[%clk 0:00:37.3]} 31... Bf6 {[%clk 0:00:11.3]} 32.
Rxb7 {[%clk 0:00:23.7]} 32... Rxb7 {[%clk 0:00:11.7]} 33. Qe8+ {[%clk
0:00:11.5]} 33... Ka7 {[%clk 0:00:12.4]} 34. Bxb7 {[%clk 0:00:11.1]} 34... Qxb7
{[%clk 0:00:11.5]} 35. Rxd6 {[%clk 0:00:10.5]} 35... Rxf2 {[%clk 0:00:12]} 36.
Qa4 {[%clk 0:00:04.7]} 36... Rxb2+ {[%clk 0:00:11.7]} 37. Ka1 {[%clk 0:00:03.3]}
37... Rb1# {[%clk 0:00:11.7]} 0-1

[Event "*** Titled Tuesday Blitz"]
[Site "Chess.com"]
[Date "2020.04.28"]
[Round "3"]
[White "HarryCun"]
[Black "SmirnovAlexandrA"]
[Result "0-1"]
[WhiteElo "2150"]
[BlackElo "2356"]
[TimeControl "180+1"]
[EndTime "10:29:35 PDT"]
[Termination "SmirnovAlexandrA won by resignation"]

1. Nf3 {[%clk 0:03:00.9]} 1... Nf6 {[%clk 0:02:56]} 2. g3 {[%clk 0:03:01]} 2...
g6 {[%clk 0:02:55.8]} 3. Bg2 {[%clk 0:03:01.2]} 3... Bg7 {[%clk 0:02:56.3]} 4.
O-O {[%clk 0:03:01.6]} 4... O-O {[%clk 0:02:56.8]} 5. d3 {[%clk 0:03:02]} 5...
d6 {[%clk 0:02:56.8]} 6. Nbd2 {[%clk 0:03:02.6]} 6... c5 {[%clk 0:02:56.7]} 7.
e4 {[%clk 0:03:03.1]} 7... Nc6 {[%clk 0:02:56.8]} 8. Re1 {[%clk 0:03:01.9]} 8...
h6 {[%clk 0:02:55.1]} 9. h3 {[%clk 0:03:02]} 9... e5 {[%clk 0:02:54.1]} 10. g4
{[%clk 0:03:02.2]} 10... Rb8 {[%clk 0:02:45.9]} 11. Nf1 {[%clk 0:03:01.1]} 11...
b5 {[%clk 0:02:45.2]} 12. Ng3 {[%clk 0:02:58.6]} 12... Nh7 {[%clk 0:02:43.1]}
13. Nh2 {[%clk 0:02:53.4]} 13... b4 {[%clk 0:02:36.2]} 14. f4 {[%clk 0:02:52.7]}
14... exf4 {[%clk 0:02:35.7]} 15. Bxf4 {[%clk 0:02:51]} 15... g5 {[%clk
0:02:29.3]} 16. Bc1 {[%clk 0:02:47.1]} 16... Nd4 {[%clk 0:02:20.8]} 17. Nf5
{[%clk 0:02:44.9]} 17... Nxf5 {[%clk 0:02:10.4]} 18. exf5 {[%clk 0:02:43.4]}
18... Bd4+ {[%clk 0:02:03.5]} 19. Kh1 {[%clk 0:02:38.9]} 19... Bb7 {[%clk
0:01:51.5]} 20. Rb1 {[%clk 0:02:29.9]} 20... Re8 {[%clk 0:01:42.9]} 21. Bd2
{[%clk 0:02:17.7]} 21... Qd7 {[%clk 0:01:36.1]} 22. Nf3 {[%clk 0:02:11]} 22...
Bg7 {[%clk 0:01:09.8]} 23. c3 {[%clk 0:02:07.5]} 23... bxc3 {[%clk 0:01:07.1]}
24. Bxc3 {[%clk 0:02:07]} 24... Bxc3 {[%clk 0:01:06.6]} 25. bxc3 {[%clk
0:02:05.9]} 25... Nf6 {[%clk 0:01:05.9]} 26. Qd2 {[%clk 0:02:01.1]} 26... Rxe1+
{[%clk 0:01:02.3]} 27. Rxe1 {[%clk 0:01:56.2]} 27... Kg7 {[%clk 0:00:58.4]} 28.
Nxg5 {[%clk 0:01:50.2]} 28... Bxg2+ {[%clk 0:00:56.2]} 29. Kxg2 {[%clk 0:01:50]}
29... Qb7+ {[%clk 0:00:53.5]} 30. Kg1 {[%clk 0:01:47.6]} 30... Qb2 {[%clk
0:00:36.8]} 31. Qe3 {[%clk 0:01:00.6]} 31... Re8 {[%clk 0:00:32.2]} 32. Qc1
{[%clk 0:00:57.2]} 32... Rxe1+ {[%clk 0:00:25.6]} 33. Qxe1 {[%clk 0:00:56.7]}
33... hxg5 {[%clk 0:00:26.1]} 34. h4 {[%clk 0:00:56.3]} 34... Nxg4 {[%clk
0:00:24.6]} 35. Qg3 {[%clk 0:00:51.3]} 35... Qc1+ {[%clk 0:00:21.7]} 36. Kg2
{[%clk 0:00:48.5]} 36... Qf4 {[%clk 0:00:20.2]} 37. hxg5 {[%clk 0:00:47.1]}
37... Qxg3+ {[%clk 0:00:19.6]} 38. Kxg3 {[%clk 0:00:47.2]} 38... Ne5 {[%clk
0:00:19.7]} 39. d4 {[%clk 0:00:46.5]} 39... cxd4 {[%clk 0:00:17.2]} 40. cxd4
{[%clk 0:00:47.4]} 40... Nc6 {[%clk 0:00:17.1]} 41. Kf4 {[%clk 0:00:45]} 41...
d5 {[%clk 0:00:13.8]} 42. Ke3 {[%clk 0:00:42.5]} 42... f6 {[%clk 0:00:13.7]} 43.
g6 {[%clk 0:00:40.3]} 43... Ne7 {[%clk 0:00:13.3]} 44. Kf4 {[%clk 0:00:40.5]}
44... a6 {[%clk 0:00:14]} 45. a3 {[%clk 0:00:39.4]} 45... a5 {[%clk 0:00:14.2]}
46. a4 {[%clk 0:00:39.6]} 46... Nc8 {[%clk 0:00:13.7]} 47. Ke3 {[%clk
0:00:38.6]} 47... Nb6 {[%clk 0:00:13.5]} 48. Kf4 {[%clk 0:00:38.5]} 48... Nxa4
{[%clk 0:00:13.7]} 49. Ke3 {[%clk 0:00:38.6]} 49... Nb6 {[%clk 0:00:13.6]} 50.
Kd3 {[%clk 0:00:39]} 50... Nc4 {[%clk 0:00:13.6]} 51. Kc3 {[%clk 0:00:39.3]}
51... Nd6 {[%clk 0:00:12.8]} 52. Kd3 {[%clk 0:00:39.3]} 52... Nxf5 {[%clk
0:00:13.7]} 53. Ke2 {[%clk 0:00:37.6]} 53... Kxg6 {[%clk 0:00:14.6]} 54. Kf3
{[%clk 0:00:37.9]} 54... Nxd4+ {[%clk 0:00:14.2]} 55. Ke3 {[%clk 0:00:38.1]}
55... Ne6 {[%clk 0:00:15.1]} 0-1

[Event "*** Titled Tuesday Blitz"]
[Site "Chess.com"]
[Date "2020.04.28"]
[Round "3"]
[White "AvitalBor"]
[Black "talman67"]
[Result "0-1"]
[WhiteElo "2813"]
[BlackElo "2571"]
[TimeControl "180+1"]
[EndTime "10:29:36 PDT"]
[Termination "talman67 won by resignation"]

1. Nf3 {[%clk 0:03:00.9]} 1... Nf6 {[%clk 0:02:59.7]} 2. c4 {[%clk 0:02:53.4]}
2... b6 {[%clk 0:02:58.9]} 3. Nc3 {[%clk 0:02:53]} 3... Bb7 {[%clk 0:02:58.1]}
4. d3 {[%clk 0:02:51.3]} 4... g6 {[%clk 0:02:33.2]} 5. e4 {[%clk 0:02:50.1]}
5... d6 {[%clk 0:02:31.7]} 6. Be2 {[%clk 0:02:47.1]} 6... Bg7 {[%clk 0:02:32.1]}
7. O-O {[%clk 0:02:47.7]} 7... O-O {[%clk 0:02:32.6]} 8. h3 {[%clk 0:02:48.3]}
8... c5 {[%clk 0:02:22.7]} 9. Nh2 {[%clk 0:02:46.3]} 9... Nc6 {[%clk 0:02:22.4]}
10. f4 {[%clk 0:02:46.8]} 10... a6 {[%clk 0:02:16.5]} 11. f5 {[%clk 0:02:29]}
11... Nd4 {[%clk 0:02:12.7]} 12. Be3 {[%clk 0:02:23.1]} 12... Nd7 {[%clk
0:02:07.4]} 13. Ng4 {[%clk 0:02:16.5]} 13... b5 {[%clk 0:02:03.2]} 14. Nd5
{[%clk 0:02:11.8]} 14... Bxd5 {[%clk 0:01:52.2]} 15. cxd5 {[%clk 0:02:10]} 15...
Ne5 {[%clk 0:01:47.7]} 16. Rc1 {[%clk 0:01:37.3]} 16... Qa5 {[%clk 0:01:06.2]}
17. a3 {[%clk 0:01:33.2]} 17... Qa4 {[%clk 0:01:04.7]} 18. Qxa4 {[%clk
0:01:02.9]} 18... Nxe2+ {[%clk 0:01:04.3]} 19. Kf2 {[%clk 0:01:02.7]} 19...
Nxd3+ {[%clk 0:01:04.1]} 20. Kxe2 {[%clk 0:00:55.2]} 20... Nxc1+ {[%clk
0:01:04.2]} 21. Rxc1 {[%clk 0:00:53.4]} 21... bxa4 {[%clk 0:01:05.1]} 22. f6
{[%clk 0:00:53.9]} 22... exf6 {[%clk 0:01:03.5]} 23. Bd2 {[%clk 0:00:53.1]}
23... f5 {[%clk 0:00:57.8]} 24. exf5 {[%clk 0:00:52.9]} 24... Bxb2 {[%clk
0:00:57.8]} 25. Rc2 {[%clk 0:00:45.3]} 25... Bxa3 {[%clk 0:00:57.5]} 26. Bc3
{[%clk 0:00:45]} 26... Rfe8+ {[%clk 0:00:51.9]} 27. Kf3 {[%clk 0:00:41.7]} 27...
Bb4 {[%clk 0:00:48.8]} 28. Nf6+ {[%clk 0:00:31.7]} 28... Kf8 {[%clk 0:00:48.6]}
29. Nxh7+ {[%clk 0:00:30.6]} 29... Ke7 {[%clk 0:00:48.6]} 30. Ba1 {[%clk
0:00:20.7]} 30... Kd8 {[%clk 0:00:41.3]} 31. f6 {[%clk 0:00:19.9]} 31... Re1
{[%clk 0:00:34.9]} 32. Ra2 {[%clk 0:00:20.3]} 32... a3 {[%clk 0:00:27.1]} 33.
Ng5 {[%clk 0:00:20.9]} 33... Ra7 {[%clk 0:00:25.2]} 34. Kf2 {[%clk 0:00:20.5]}
34... Rd1 {[%clk 0:00:16.7]} 35. h4 {[%clk 0:00:20.4]} 35... Rxd5 {[%clk
0:00:16.2]} 36. g4 {[%clk 0:00:20.8]} 36... Rd2+ {[%clk 0:00:15.6]} 37. Rxd2
{[%clk 0:00:20]} 37... Bxd2 {[%clk 0:00:16.5]} 38. Ne4 {[%clk 0:00:20.6]} 38...
Bf4 {[%clk 0:00:13.5]} 39. h5 {[%clk 0:00:21.2]} 39... gxh5 {[%clk 0:00:13.5]}
40. gxh5 {[%clk 0:00:22.1]} 40... Kd7 {[%clk 0:00:13]} 41. Kf3 {[%clk
0:00:22.1]} 41... Be5 {[%clk 0:00:12.9]} 42. Nxc5+ {[%clk 0:00:21.8]} 42... dxc5
{[%clk 0:00:12]} 43. Bxe5 {[%clk 0:00:21.2]} 43... Ke6 {[%clk 0:00:12.4]} 44.
Ke4 {[%clk 0:00:20.6]} 44... Rb7 {[%clk 0:00:11.4]} 45. h6 {[%clk 0:00:20.9]}
45... Rb4+ {[%clk 0:00:11.5]} 46. Kf3 {[%clk 0:00:20.6]} 46... Kxe5 {[%clk
0:00:11.8]} 47. Kg3 {[%clk 0:00:21.5]} 47... Rb8 {[%clk 0:00:12.2]} 48. h7
{[%clk 0:00:22.4]} 0-1

[Event "*** Titled Tuesday Blitz"]
[Site "Chess.com"]
[Date "2020.04.28"]
[Round "3"]
[White "LikeWater"]
[Black "IMDT02"]
[Result "1-0"]
[WhiteElo "2765"]
[BlackElo "2444"]
[TimeControl "180+1"]
[EndTime "10:29:36 PDT"]
[Termination "LikeWater won by resignation"]

1. e4 {[%clk 0:03:00.9]} 1... c5 {[%clk 0:02:59.2]} 2. Nf3 {[%clk 0:03:00.9]}
2... Nc6 {[%clk 0:02:59.6]} 3. Nc3 {[%clk 0:03:01.8]} 3... Nf6 {[%clk
0:02:58.9]} 4. e5 {[%clk 0:03:02]} 4... Ng4 {[%clk 0:02:56.7]} 5. Qe2 {[%clk
0:03:02.9]} 5... g6 {[%clk 0:02:56.2]} 6. h3 {[%clk 0:02:59.4]} 6... Nh6 {[%clk
0:02:55.8]} 7. Ne4 {[%clk 0:02:59.9]} 7... Qb6 {[%clk 0:02:42.9]} 8. d4 {[%clk
0:02:44.2]} 8... Nxd4 {[%clk 0:02:38]} 9. Nxd4 {[%clk 0:02:40.7]} 9... cxd4
{[%clk 0:02:38.9]} 10. Nd6+ {[%clk 0:02:38.7]} 10... Kd8 {[%clk 0:02:35]} 11.
Bxh6 {[%clk 0:02:39.1]} 11... exd6 {[%clk 0:02:34.9]} 12. Bg5+ {[%clk
0:02:21.6]} 12... Be7 {[%clk 0:02:34.1]} 13. Bxe7+ {[%clk 0:02:15.4]} 13... Kxe7
{[%clk 0:02:35]} 14. exd6+ {[%clk 0:02:10.4]} 14... Kxd6 {[%clk 0:02:28.4]} 15.
O-O-O {[%clk 0:02:10.6]} 15... f6 {[%clk 0:02:11.8]} 16. Qc4 {[%clk 0:01:48.4]}
16... Qc6 {[%clk 0:02:06.4]} 17. Rxd4+ {[%clk 0:01:48.4]} 17... Kc7 {[%clk
0:02:06.5]} 18. Qd3 {[%clk 0:01:49]} 18... d5 {[%clk 0:02:01.9]} 19. Rxd5 {[%clk
0:01:43.3]} 19... Bf5 {[%clk 0:01:59.3]} 20. Qg3+ {[%clk 0:01:35.2]} 20... Kc8
{[%clk 0:01:55.6]} 21. Rxf5 {[%clk 0:01:29.7]} 21... gxf5 {[%clk 0:01:53.4]} 22.
Bd3 {[%clk 0:01:30.3]} 22... Qc7 {[%clk 0:01:43.3]} 23. Bxf5+ {[%clk 0:01:25.4]}
23... Kb8 {[%clk 0:01:43.8]} 24. Qf3 {[%clk 0:01:17.5]} 24... a6 {[%clk
0:01:43.7]} 25. Re1 {[%clk 0:01:12.8]} 25... Ka7 {[%clk 0:01:42.3]} 26. Qe3+
{[%clk 0:00:52.1]} 26... Kb8 {[%clk 0:01:33.8]} 27. Qd4 {[%clk 0:00:45.6]} 27...
Rd8 {[%clk 0:01:17.8]} 28. Qxf6 {[%clk 0:00:36]} 28... Qf4+ {[%clk 0:01:17.6]}
29. Kb1 {[%clk 0:00:35.2]} 29... Qd2 {[%clk 0:01:17.2]} 30. Qe5+ {[%clk
0:00:29]} 30... Ka7 {[%clk 0:01:16.6]} 31. Qe3+ {[%clk 0:00:16.6]} 31... Qxe3
{[%clk 0:01:16.9]} 32. fxe3 {[%clk 0:00:17.5]} 32... h5 {[%clk 0:01:15.4]} 33.
g4 {[%clk 0:00:14.4]} 33... h4 {[%clk 0:01:12.5]} 34. g5 {[%clk 0:00:12.1]}
34... Rf8 {[%clk 0:01:10.8]} 35. e4 {[%clk 0:00:12.3]} 35... Rae8 {[%clk
0:01:11.3]} 36. Rg1 {[%clk 0:00:12.8]} 36... Re7 {[%clk 0:01:03.1]} 37. g6
{[%clk 0:00:12.9]} 37... Rg7 {[%clk 0:01:03.5]} 38. Rg4 {[%clk 0:00:09.6]} 38...
Kb6 {[%clk 0:01:03.6]} 39. b3 {[%clk 0:00:05.8]} 39... Kc5 {[%clk 0:01:03.4]}
40. c3 {[%clk 0:00:04.6]} 40... Kd6 {[%clk 0:01:03.3]} 41. Rxh4 {[%clk
0:00:04.2]} 41... Ke5 {[%clk 0:01:03.8]} 42. Rg4 {[%clk 0:00:04.6]} 42... Rh8
{[%clk 0:01:03.4]} 43. Rg3 {[%clk 0:00:03.7]} 43... Rh4 {[%clk 0:01:03.4]} 44.
Kc2 {[%clk 0:00:03.7]} 44... Kf4 {[%clk 0:01:03.8]} 45. Rd3 {[%clk 0:00:04.1]}
45... Rh8 {[%clk 0:00:59.7]} 46. c4 {[%clk 0:00:04.5]} 46... b5 {[%clk
0:00:59.2]} 47. Kc3 {[%clk 0:00:05.1]} 47... bxc4 {[%clk 0:00:59.2]} 48. bxc4
{[%clk 0:00:06]} 48... Re8 {[%clk 0:00:57.7]} 49. Rd5 {[%clk 0:00:05.8]} 49...
Rb8 {[%clk 0:00:56.9]} 50. c5 {[%clk 0:00:05.7]} 50... Rc7 {[%clk 0:00:56.1]}
51. Kc4 {[%clk 0:00:04.3]} 51... Rb1 {[%clk 0:00:56.4]} 52. Kd4 {[%clk
0:00:02.5]} 52... Rc1 {[%clk 0:00:53.6]} 53. a3 {[%clk 0:00:02.1]} 53... a5
{[%clk 0:00:53.5]} 54. a4 {[%clk 0:00:02.4]} 54... Rc6 {[%clk 0:00:52.5]} 55. h4
{[%clk 0:00:02]} 55... Rc7 {[%clk 0:00:52]} 56. h5 {[%clk 0:00:02.1]} 56... Kg5
{[%clk 0:00:52.6]} 57. Ke5 {[%clk 0:00:02.6]} 57... R1xc5 {[%clk 0:00:50.9]} 58.
Rxc5 {[%clk 0:00:03]} 58... Rxc5+ {[%clk 0:00:51.5]} 59. Kd6 {[%clk 0:00:03.5]}
1-0

[Event "*** Titled Tuesday Blitz"]
[Site "Chess.com"]
[Date "2020.04.28"]
[Round "3"]
[White "kinga2008"]
[Black "DishonorOnYourCow"]
[Result "0-1"]
[WhiteElo "2105"]
[BlackElo "2324"]
[TimeControl "180+1"]
[EndTime "10:29:36 PDT"]
[Termination "DishonorOnYourCow won by resignation"]

1. e4 {[%clk 0:03:00.9]} 1... c5 {[%clk 0:02:57.1]} 2. Nf3 {[%clk 0:02:56.9]}
2... d6 {[%clk 0:02:56.7]} 3. c3 {[%clk 0:02:50.5]} 3... Nf6 {[%clk 0:02:53.3]}
4. Bd3 {[%clk 0:02:49.3]} 4... Nc6 {[%clk 0:02:48.4]} 5. Bc2 {[%clk 0:02:49.5]}
5... g6 {[%clk 0:02:47.9]} 6. d4 {[%clk 0:02:46.8]} 6... cxd4 {[%clk 0:02:48.8]}
7. cxd4 {[%clk 0:02:47.2]} 7... Bg7 {[%clk 0:02:48.7]} 8. a3 {[%clk 0:02:46.6]}
8... O-O {[%clk 0:02:48.1]} 9. O-O {[%clk 0:02:44.8]} 9... a6 {[%clk 0:02:46.9]}
10. Bg5 {[%clk 0:02:42.6]} 10... Bg4 {[%clk 0:02:45.5]} 11. Be3 {[%clk 0:02:35]}
11... Rc8 {[%clk 0:02:41.2]} 12. Nc3 {[%clk 0:02:32.8]} 12... Na5 {[%clk
0:02:22]} 13. h3 {[%clk 0:02:09.7]} 13... Bd7 {[%clk 0:02:11]} 14. Bd3 {[%clk
0:02:04.7]} 14... Nc4 {[%clk 0:02:07]} 15. Bxc4 {[%clk 0:01:45.5]} 15... Rxc4
{[%clk 0:02:07.9]} 16. Qb3 {[%clk 0:01:46]} 16... b5 {[%clk 0:01:45.4]} 17. Nd2
{[%clk 0:01:41.5]} 17... Rc8 {[%clk 0:01:43.7]} 18. f4 {[%clk 0:01:32.5]} 18...
Qb6 {[%clk 0:01:24.5]} 19. Kh1 {[%clk 0:01:26.8]} 19... Nh5 {[%clk 0:01:20.9]}
20. Nd5 {[%clk 0:01:22.3]} 20... Ng3+ {[%clk 0:01:07.2]} 21. Kg1 {[%clk
0:01:11.9]} 21... Qd8 {[%clk 0:01:05.6]} 22. Rfe1 {[%clk 0:00:59.5]} 22... e6
{[%clk 0:00:47]} 23. Nb4 {[%clk 0:00:52.2]} 23... Qb6 {[%clk 0:00:42.4]} 24. Qd3
{[%clk 0:00:35.2]} 24... a5 {[%clk 0:00:37.1]} 25. Nc2 {[%clk 0:00:29.7]} 25...
b4 {[%clk 0:00:30.6]} 26. d5 {[%clk 0:00:26.3]} 26... Qb5 {[%clk 0:00:24.7]} 27.
Qxb5 {[%clk 0:00:19.9]} 27... Bxb5 {[%clk 0:00:25.6]} 28. axb4 {[%clk
0:00:14.4]} 28... Rxc2 {[%clk 0:00:24.1]} 29. Rxa5 {[%clk 0:00:14.2]} 29... Bd3
{[%clk 0:00:22.5]} 30. Ra7 {[%clk 0:00:03.1]} 30... Rxb2 {[%clk 0:00:21.5]} 31.
Rd7 {[%clk 0:00:01.9]} 31... exd5 {[%clk 0:00:21]} 32. Rxd6 {[%clk 0:00:02.1]}
32... dxe4 {[%clk 0:00:20.3]} 33. Bc5 {[%clk 0:00:02.5]} 33... Ne2+ {[%clk
0:00:19.1]} 34. Kf2 {[%clk 0:00:01.6]} 34... Rxd2 {[%clk 0:00:19.1]} 35. Ke3
{[%clk 0:00:02.2]} 35... Rb2 {[%clk 0:00:18.8]} 36. Rxd3 {[%clk 0:00:02.4]}
36... exd3 {[%clk 0:00:18.6]} 37. Bxf8 {[%clk 0:00:03.3]} 37... Bxf8 {[%clk
0:00:17.1]} 38. Kxd3 {[%clk 0:00:04]} 38... Nxf4+ {[%clk 0:00:16.2]} 39. Kc3
{[%clk 0:00:04.3]} 39... Rxb4 {[%clk 0:00:16.6]} 40. Rf1 {[%clk 0:00:03.1]}
40... Nxg2 {[%clk 0:00:15.4]} 41. Re1 {[%clk 0:00:01.9]} 41... Rh4 {[%clk
0:00:15.7]} 42. Re8 {[%clk 0:00:02.8]} 42... Rxh3+ {[%clk 0:00:15.6]} 43. Kc4
{[%clk 0:00:03.6]} 43... Kg7 {[%clk 0:00:16.3]} 44. Kd4 {[%clk 0:00:04.5]} 44...
h5 {[%clk 0:00:16.6]} 45. Kd5 {[%clk 0:00:05.4]} 45... Rh4 {[%clk 0:00:16.8]}
46. Re2 {[%clk 0:00:04.5]} 46... Nf4+ {[%clk 0:00:16.5]} 47. Ke4 {[%clk
0:00:04.7]} 0-1